bitfinex/quotes_ETHUSD_20241004
["timestamp","ask_amount","ask_price","bid_price","bid_amount"]
[1728020641977,0.7508,2385.5,2385.1,4.26476086]
[1728020642182,0.7508,2385.5,2385.2,4.19251]
[1728020642671,0.7508,2385.5,2385.1,4.26476086]
[1728020642831,0.7508,2385.5,2385.1,3.32649297]
[1728020644336,0.7508,2385.5,2385.1,7.51909297]
[1728020645573,0.7508,2385.5,2385.1,3.32649297]
[1728020645783,0.7508,2385.5,2385.1,3.2426478]
[1728020647144,0.7508,2385.5,2385.1,7.4352478]
[1728020647292,0.7508,2385.5,2385.1,7.51909298]
[1728020648297,0.7508,2385.5,2385.1,3.32649298]
[1728020648493,0.7508,2385.5,2385.1,7.51910298]
[1728020648698,0.7508,2385.5,2385.2,4.19246]
[1728020650309,1.6760633,2385.5,2385.0,0.87611334]
[1728020650515,1.6760633,2385.5,2385.1,8.38528]
[1728020650845,0.7508,2385.5,2385.1,4.1926]
[1728020651212,0.7508,2385.5,2385.1,8.3852]
[1728020652811,0.7508,2385.5,2385.1,4.1926]
[1728020653851,0.7508,2385.5,2385.1,8.3852]
[1728020654210,0.7508,2385.5,2385.1,4.1926]
[1728020654425,0.7508,2385.5,2385.1,8.3852]
[1728020654654,0.7508,2385.5,2385.1,4.1926]
[1728020655745,0.7508,2385.5,2385.3,4.19232]
[1728020656210,0.7508,2385.5,2385.2,4.19251]
[1728020660017,0.7508,2385.5,2385.3,4.19231]
[1728020660217,0.880433,2385.7,2385.4,4.19207]
[1728020670558,0.880433,2385.7,2385.4,8.38415]
[1728020672173,0.880433,2385.7,2385.4,3.76506208]
[1728020672503,0.880433,2385.7,2385.4,7.95714208]
[1728020672864,0.880433,2385.7,2385.4,3.76506208]
[1728020673068,0.880433,2385.7,2385.4,7.95711208]
[1728020673904,0.880433,2385.7,2385.4,7.95713208]
[1728020674565,0.880433,2385.7,2385.4,3.76506208]
[1728020675067,0.880433,2385.7,2385.4,7.95713208]
[1728020675389,0.880433,2385.7,2385.4,3.76506208]
[1728020675565,0.880433,2385.7,2385.4,7.95713208]
[1728020675765,0.880433,2385.7,2385.4,3.76506208]
[1728020676010,1.3876133,2385.7,2385.4,3.76506208]
[1728020676304,1.3876133,2385.7,2385.4,7.95714208]
[1728020676503,1.3876133,2385.7,2385.4,3.76506208]
[1728020678520,1.3876133,2385.7,2385.4,7.95714208]
[1728020678823,1.3876133,2385.7,2385.4,3.76506208]
[1728020681586,1.3876133,2385.7,2385.4,7.95714208]
[1728020683193,0.880433,2385.7,2385.4,7.95714208]
[1728020684092,0.880433,2385.7,2385.5,4.19196]
[1728020685458,0.880433,2385.7,2385.4,3.76506208]
[1728020685966,0.880433,2385.7,2385.5,4.19196]
[1728020686367,0.880433,2385.7,2385.4,3.76506208]
[1728020686869,0.880433,2385.7,2385.4,7.95714208]
[1728020687233,0.880433,2385.7,2385.4,7.95715208]
[1728020687437,0.880433,2385.7,2385.4,7.95714208]
[1728020687635,0.880433,2385.7,2385.4,3.76506208]
[1728020688145,1.3876133,2385.7,2385.4,3.76506208]
[1728020689170,1.3876133,2385.7,2385.2,4.1924]
[1728020689373,1.3876133,2385.7,2385.3,4.19225]
[1728020690572,1.3876133,2385.7,2385.4,4.19215]
[1728020693603,5.5792633,2385.7,2385.2,8.3848]
[1728020694392,1.3876133,2385.7,2385.2,4.1924]
[1728020694701,1.3876133,2385.7,2385.3,4.19224]
[1728020694702,0.880433,2385.7,2385.3,4.19224]
[1728020696184,0.880433,2385.7,2385.2,4.1924]
[1728020696386,5.072083,2385.7,2385.2,8.38481]
[1728020696558,5.072083,2385.7,2385.2,4.1924]
[1728020696898,5.9984373,2385.7,2385.2,8.38481]
[1728020697099,5.9984373,2385.7,2385.2,8.38483]
[1728020699266,0.7518,2385.6,2385.1,4.31547763]
[1728020699607,0.7518,2385.5,2385.1,4.31547763]
[1728020700410,0.7518,2385.5,2385.2,4.19251]
[1728020701097,0.7518,2385.5,2385.3,4.19231]
[1728020701299,0.118233,2385.7,2385.1,0.63589763]
[1728020701300,0.870033,2385.7,2385.1,0.63589763]
[1728020701474,0.870033,2385.7,2385.3,4.19224]
[1728020701899,5.061673,2385.7,2385.2,4.19237]
[1728020703669,0.7518,2385.6,2385.2,4.19237]
[1728020704393,4.1919,2385.6,2385.0,7.82121322]
[1728020704567,4.309873,2385.7,2384.9,1.19737561]
[1728020704568,0.7733,2385.2,2384.9,1.19737561]
[1728020704881,0.7733,2385.2,2384.8,4.19309]
[1728020706710,0.7733,2385.2,2384.7,4.19338]
[1728020706897,0.7733,2385.1,2384.7,4.19338]
[1728020707691,0.7733,2385.1,2384.6,4.19345]
[1728020707890,0.7733,2385.1,2384.6,8.38692]
[1728020708220,0.7733,2385.1,2384.6,4.19345]
[1728020708383,0.7733,2385.0,2384.6,4.19345]
[1728020709187,0.7733,2385.0,2384.4,11.1235693]
[1728020709188,0.7733,2384.9,2384.4,11.1235693]
[1728020709401,0.7733,2384.8,2384.4,4.19378]
[1728020710410,0.7733,2384.8,2384.4,3.57662609]
[1728020713590,4.19288,2385.0,2384.5,4.19362]
[1728020713829,4.96618,2385.0,2384.5,4.27748522]
[1728020714125,5.804732,2385.0,2384.5,4.27748522]
[1728020714843,0.7733,2385.0,2384.6,5.99637893]
[1728020715345,0.7733,2385.0,2384.7,4.27725101]
[1728020715639,4.19264,2385.2,2384.8,4.19313]
[1728020715640,0.7733,2385.2,2384.8,4.19313]
[1728020715842,0.7733,2385.2,2384.9,4.19303]
[1728020716944,0.7733,2385.2,2384.9,4.27688113]
[1728020717842,9.15783,2385.4,2384.9,5.81727214]
[1728020718046,9.15783,2385.4,2384.9,4.78998113]
[1728020718250,9.15783,2385.4,2384.9,0.59695113]
[1728020718810,9.15783,2385.4,2384.9,0.5131]
[1728020719006,4.96556,2385.4,2384.9,0.5131]
[1728020719237,4.19235,2385.3,2384.9,0.5131]
[1728020725264,4.19255,2385.2,2384.8,4.19313]
[1728020725464,0.7535,2385.0,2384.6,4.19345]
[1728020729001,0.7535,2385.0,2384.7,0.08385935]
[1728020729513,0.7535,2385.0,2384.6,4.19345]
[1728020730163,0.7535,2385.0,2384.7,0.08385936]
[1728020730367,4.94605,2385.2,2384.7,4.27723936]
[1728020730609,4.94605,2385.2,2384.8,4.19322]
[1728020731039,0.7535,2385.2,2384.8,4.70632]
[1728020731484,0.7535,2385.2,2384.8,4.19322]
[1728020732001,0.7535,2385.2,2384.8,4.19312]
[1728020733205,0.7535,2385.2,2384.8,8.38623]
[1728020733412,4.94584,2385.3,2384.8,9.276163]
[1728020733715,0.7535,2385.3,2384.8,4.19311]
[1728020733873,4.19253,2385.2,2384.8,4.19311]
[1728020735906,4.94594,2385.3,2384.8,4.19311]
[1728020737002,0.7535,2385.3,2384.9,0.5131]
[1728020737176,4.96793,2385.6,2385.0,4.27655747]
[1728020737377,4.96793,2385.6,2385.1,4.19269]
[1728020738908,9.1599,2385.6,2385.1,4.19269]
[1728020739085,9.1599,2385.6,2385.0,4.19271]
[1728020739086,4.19218,2385.4,2385.0,4.19271]
[1728020739288,4.192,2385.5,2385.0,4.19271]
[1728020740805,4.19219,2385.4,2384.9,0.5131]
[1728020741005,4.19252,2385.2,2384.8,4.19308]
[1728020742716,0.776,2385.3,2384.8,4.19308]
[1728020742921,4.96839,2385.3,2384.8,4.19308]
[1728020743418,0.776,2385.3,2384.9,4.19301]
[1728020744020,4.96835,2385.3,2384.8,4.19308]
[1728020745309,0.776,2385.3,2384.8,8.38619]
[1728020745609,0.776,2385.3,2384.8,4.19308]
[1728020745832,4.96839,2385.3,2384.8,4.19308]
[1728020746041,4.96839,2385.3,2384.8,8.3862]
[1728020746347,4.96839,2385.3,2384.8,8.38619]
[1728020748443,4.96839,2385.3,2384.8,4.19308]
[1728020748652,5.884448,2385.3,2384.8,4.19308]
[1728020750562,5.884448,2385.3,2384.8,8.38622]
[1728020750857,4.96839,2385.3,2384.8,4.19308]
[1728020753832,0.8196,2385.1,2384.7,4.19338]
[1728020754423,0.8196,2385.1,2384.7,3.66930102]
[1728020756021,5.01238,2385.1,2384.6,4.19345]
[1728020756560,5.01238,2385.1,2384.6,8.38692]
[1728020756859,5.932871,2385.1,2384.6,8.38692]
[1728020757060,5.932871,2385.1,2384.6,4.19345]
[1728020757272,5.932871,2385.1,2384.4,11.1236693]
[1728020757273,0.8196,2385.0,2384.4,11.1236693]
[1728020757554,0.8196,2384.6,2384.2,4.19427]
[1728020762764,0.8196,2384.6,2384.0,0.87618439]
[1728020762976,0.8196,2384.6,2383.9,4.70776]
[1728020762977,4.19394,2384.4,2383.9,4.70776]
[1728020763130,4.19394,2384.4,2383.8,7.80597369]
[1728020763131,0.8196,2384.2,2383.8,0.87618439]
[1728020763439,0.8196,2384.2,2383.9,1.33134201]
[1728020763646,0.8196,2384.2,2383.8,4.19496]
[1728020764670,0.8196,2384.2,2383.9,4.1948]
[1728020764830,0.8196,2384.2,2383.7,8.90311]
[1728020765259,0.8196,2384.2,2383.8,4.19493]
[1728020765853,0.8196,2384.2,2383.8,3.6662108]
[1728020766069,5.01388,2384.2,2383.7,4.70809]
[1728020768966,4.1945,2384.1,2383.7,0.5131]
[1728020769636,4.1945,2384.1,2383.6,6.41852893]
[1728020769838,4.1945,2384.1,2383.6,5.58137182]
[1728020770065,0.7911,2384.0,2383.6,5.58137182]
[1728020770367,4.98581,2384.0,2383.6,1.38614182]
[1728020771371,0.7911,2384.0,2383.6,5.58145182]
[1728020771541,4.98574,2384.0,2383.6,1.38614182]
[1728020772068,0.7911,2384.0,2383.5,4.70849]
[1728020772253,0.7911,2384.0,2383.6,4.1953]
[1728020773273,0.7911,2384.0,2383.5,4.70849]
[1728020773570,4.19482,2383.9,2383.5,4.70849]
[1728020774072,4.19482,2383.9,2383.3,6.93212893]
[1728020774241,4.98608,2383.8,2383.3,6.51172893]
[1728020774567,4.98608,2383.8,2383.3,12.05164075]
[1728020775134,0.7911,2383.8,2383.4,4.19565]
[1728020776326,4.19457,2384.1,2383.5,4.19549]
[1728020776575,4.19377,2384.5,2383.8,4.19497]
[1728020776576,0.7911,2384.2,2383.8,4.19497]
[1728020776772,0.7911,2384.2,2383.7,1.80289893]
[1728020776932,0.7911,2384.2,2384.0,4.19459]
[1728020777128,0.7911,2384.4,2384.0,4.19459]
[1728020778132,4.98503,2384.4,2384.0,4.19459]
[1728020781507,4.98503,2384.4,2384.0,5.084851]
[1728020783394,4.98503,2384.4,2384.0,0.890261]
[1728020783565,0.7911,2384.3,2383.7,4.70822]
[1728020783772,4.19447,2384.1,2383.6,4.19525]
[1728020783967,1.210547,2384.0,2383.6,4.19525]
[1728020784168,0.7911,2384.0,2383.6,4.19525]
[1728020784472,4.98573,2384.0,2383.5,7.4428893]
[1728020784685,4.19493,2383.9,2383.4,7.19556]
[1728020785775,4.19493,2383.9,2383.4,4.19556]
[1728020785976,9.1805,2384.0,2383.5,4.1955]
[1728020788808,4.98573,2384.0,2383.5,4.27940068]
[1728020789398,4.98573,2384.0,2383.5,4.27930068]
[1728020790802,4.98573,2384.0,2383.5,4.1954]
[1728020792206,4.98573,2384.0,2383.5,5.37318758]
[1728020792566,4.98573,2384.0,2383.5,9.60585787]
[1728020792781,4.98573,2384.0,2383.5,5.37318758]
[1728020793767,9.18046,2384.0,2383.5,5.37318758]
[1728020794183,9.18046,2384.0,2383.5,4.1954]
[1728020794911,0.7747,2383.8,2383.4,4.19567]
[1728020795992,4.96933,2384.0,2383.5,4.19537]
[1728020796196,4.96933,2384.0,2383.5,5.085789]
[1728020796587,9.16408,2384.0,2383.5,5.085789]
[1728020797104,9.16405,2384.0,2383.5,5.085789]
[1728020798011,4.96933,2384.0,2383.5,5.085789]
[1728020798526,9.16405,2384.0,2383.5,5.085789]
[1728020798808,4.96933,2384.0,2383.5,5.085789]
[1728020799993,9.16405,2384.0,2383.5,5.085789]
[1728020801626,9.16405,2384.0,2383.5,0.890419]
[1728020801627,0.7747,2383.8,2383.5,0.890419]
[1728020803007,4.96969,2383.8,2383.5,0.890419]
[1728020803195,4.96969,2383.8,2383.3,8.9046]
[1728020803406,4.96969,2383.8,2383.3,4.70882]
[1728020803602,4.96969,2383.8,2383.4,4.19566]
[1728020804395,0.7747,2383.8,2383.4,4.19566]
[1728020808434,0.7747,2383.8,2383.5,4.19548]
[1728020808594,0.7747,2383.8,2383.5,8.39086]
[1728020809000,0.7747,2383.8,2383.5,5.16678888]
[1728020812474,4.19446,2384.1,2383.5,5.16678888]
[1728020812633,0.8308,2384.0,2383.7,4.19515]
[1728020813195,5.02551,2384.0,2383.5,4.19539]
[1728020813429,0.8308,2383.9,2383.5,4.19539]
[1728020816106,5.02564,2383.9,2383.5,4.19539]
[1728020817833,0.8308,2383.9,2383.5,4.19539]
[1728020820969,0.8308,2383.9,2383.5,8.39081]
[1728020821139,0.8308,2383.9,2383.7,4.19515]
[1728020821339,0.8308,2384.2,2383.8,4.19498]
[1728020822832,0.8308,2384.2,2383.9,4.19477]
[1728020823035,11.50293,2385.0,2383.9,4.19477]
[1728020823036,0.8308,2384.7,2384.1,0.5131]
[1728020823241,0.8308,2384.7,2384.3,4.19399]
[1728020823440,4.19298,2385.0,2384.5,4.19367]
[1728020823795,4.63159857,2385.2,2384.6,4.27743348]
[1728020823796,0.8308,2384.9,2384.6,4.27743348]
[1728020824063,0.8308,2384.9,2384.6,4.19357]
[1728020824250,0.8308,2384.9,2384.4,6.50974893]
[1728020824572,0.8308,2384.9,2384.4,4.70685]
[1728020824721,0.8308,2384.9,2384.4,8.90068]
[1728020827131,0.8308,2384.9,2384.5,4.1937]
[1728020829231,4.19264,2385.2,2384.7,4.19337]
[1728020829232,0.776,2385.1,2384.7,4.19337]
[1728020829652,0.776,2385.1,2384.7,4.27722756]
[1728020830044,0.776,2385.1,2384.7,4.19337]
[1728020830549,0.776,2385.1,2384.6,10.18984893]
[1728020830863,0.776,2385.1,2384.7,1.01898489]
[1728020831430,0.776,2385.1,2384.8,4.1931]
[1728020832535,0.776,2385.1,2384.8,8.38621]
[1728020832855,0.776,2385.1,2384.8,4.1931]
[1728020833736,0.776,2385.5,2385.0,2.31599893]
[1728020833930,0.776,2385.5,2385.1,0.30350997]
[1728020834364,0.776,2385.5,2385.1,4.49608997]
[1728020834663,0.776,2385.5,2385.1,4.2579523]
[1728020835055,0.776,2385.5,2385.1,4.27642433]
[1728020835632,0.776,2385.5,2385.1,4.19258]
[1728020836039,0.776,2385.5,2385.2,0.08384081]
[1728020836427,0.776,2385.5,2385.1,4.27642081]
[1728020836633,0.776,2385.5,2385.1,5.35495378]
[1728020837060,0.776,2385.5,2385.1,5.27111297]
[1728020843189,0.776,2385.5,2385.0,5.35674689]
[1728020843548,4.96816,2385.5,2385.0,5.35674689]
[1728020844281,0.776,2385.3,2384.6,11.6363893]
[1728020844490,4.1927,2385.1,2384.6,11.6363893]
[1728020844838,0.776,2385.0,2384.6,11.1232893]
[1728020845140,0.776,2385.0,2384.7,1.11232893]
[1728020845365,0.776,2385.0,2384.6,8.38698]
[1728020845743,0.776,2385.0,2384.6,4.19348]
[1728020846498,0.776,2385.0,2384.6,3.67930192]
[1728020846995,0.776,2385.0,2384.7,4.19338]
[1728020847194,0.776,2385.0,2384.6,3.67930192]
[1728020847524,0.776,2385.0,2384.7,0.36793019]
[1728020848313,0.776,2385.0,2384.7,4.56131019]
[1728020849394,0.776,2385.0,2384.7,4.19338]
[1728020849691,0.776,2385.0,2384.6,3.67930192]
[1728020849855,0.776,2385.0,2384.7,4.19338]
[1728020851001,0.776,2385.0,2384.6,7.87275192]
[1728020851356,0.776,2385.0,2384.7,4.19337]
[1728020853260,0.776,2385.0,2384.7,4.1933]
[1728020856602,0.776,2385.0,2384.8,4.1932]
[1728020859302,0.776,2385.0,2384.8,4.19313]
[1728020859921,0.7758,2385.3,2385.0,4.19284]
[1728020860321,0.7758,2385.3,2384.9,4.19304]
[1728020861407,0.7758,2385.3,2384.9,8.38599]
[1728020863636,4.19257,2385.2,2384.7,4.98057019]
[1728020863804,0.7758,2385.1,2384.8,4.19322]
[1728020864130,0.7758,2385.1,2384.7,4.19331]
[1728020864732,0.7758,2385.1,2384.7,8.38661]
[1728020867599,0.7758,2385.1,2384.4,0.5131]
[1728020867814,0.7758,2385.1,2384.4,4.19378]
[1728020867815,0.7758,2384.8,2384.4,4.19378]
[1728020868198,0.7758,2384.8,2384.4,4.72890051]
[1728020869344,0.7758,2384.8,2384.5,4.1937]
[1728020869716,0.7758,2384.8,2384.4,4.72890051]
[1728020870120,0.7758,2384.8,2384.5,4.19362]
[1728020870659,0.7758,2384.8,2384.4,4.72890051]
[1728020870839,0.7758,2384.8,2384.4,4.19378]
[1728020872221,0.7758,2384.8,2384.4,8.38761]
[1728020872422,0.7758,2384.8,2384.4,4.19378]
[1728020872623,0.7758,2384.8,2384.4,4.1939]
[1728020873230,0.7758,2384.8,2384.4,8.38773]
[1728020873409,0.7758,2384.8,2384.4,4.19383]
[1728020874247,0.7758,2384.8,2384.3,4.19396]
[1728020874424,0.7758,2384.8,2384.4,4.1938]
[1728020875322,0.7758,2384.8,2384.5,4.19374]
[1728020878842,0.7758,2384.8,2384.5,4.19366]
[1728020880624,0.7758,2384.8,2384.5,8.3873]
[1728020881441,0.7758,2384.8,2384.5,4.19364]
[1728020883217,0.8204,2384.6,2384.1,4.19433]
[1728020883547,0.8204,2384.5,2384.2,4.19416]
[1728020884060,0.8204,2384.5,2384.1,8.38869]
[1728020884666,0.8204,2384.5,2384.2,4.19419]
[1728020884866,0.8204,2384.5,2384.1,4.19433]
[1728020885022,0.8204,2384.5,2384.2,4.19425]
[1728020888077,0.8204,2384.5,2384.2,8.38843]
[1728020889170,0.8204,2384.5,2384.2,4.19418]
[1728020890574,0.43901848,2385.5,2384.9,0.55]
[1728020890737,0.43901848,2385.5,2385.4,6.86488058]
[1728020891060,0.118233,2385.7,2385.4,6.86488058]
[1728020891061,0.118233,2385.7,2385.6,4.19181]
[1728020892661,0.118233,2385.7,2385.6,7.19181]
[1728020894188,0.118233,2385.7,2385.6,6.72038]
[1728020899463,0.118233,2385.7,2385.6,11.39439067]
[1728020907286,0.118233,2385.7,2385.6,10.92369125]
[1728020907489,0.118233,2385.7,2385.6,12.63917938]
[1728020912630,0.118233,2385.7,2385.6,13.18917938]
[1728020913631,0.118233,2385.7,2385.6,10.67170469]
[1728020918837,0.118233,2385.7,2385.6,11.18480469]
[1728020919042,0.118233,2385.7,2385.6,11.60520469]
[1728020919713,0.8211,2386.9,2386.7,4.18988]
[1728020919912,0.8211,2386.9,2386.8,6.43003574]
[1728020920108,0.8211,2387.3,2386.9,4.18951]
[1728020920347,1.239975,2387.3,2387.0,2.15653598]
[1728020920547,0.8211,2387.3,2387.0,2.15653598]
[1728020920848,0.8211,2387.5,2387.0,2.24031686]
[1728020921147,0.8211,2387.5,2386.6,3.0]
[1728020921148,4.18795,2387.8,2387.4,2.15653598]
[1728020921351,0.8211,2387.9,2387.6,2.15653598]
[1728020921515,0.8211,2387.9,2387.5,4.18835]
[1728020922224,0.00258853,2388.0,2387.6,2.15653598]
[1728020922546,0.00258853,2388.0,2387.9,4.18778]
[1728020923462,0.00258853,2388.0,2387.9,7.73778]
[1728020923620,0.00258853,2388.0,2387.9,12.40048913]
[1728020924057,0.00258853,2388.0,2387.9,12.82088913]
[1728020924414,0.00258853,2388.0,2387.9,13.33398913]
[1728020924618,0.00258853,2388.0,2387.9,15.14487357]
[1728020924819,0.00258853,2388.0,2387.6,4.9719636]
[1728020925021,0.00258853,2388.0,2387.6,4.18821]
[1728020925825,0.00258853,2388.0,2387.5,4.18842]
[1728020926025,4.19020853,2388.0,2387.5,0.55]
[1728020926242,4.19030853,2388.0,2387.5,0.55]
[1728020926446,4.18779,2387.9,2387.5,1.58347591]
[1728020926836,4.18779,2387.9,2387.4,0.4204]
[1728020927019,0.8211,2387.8,2387.3,0.4204]
[1728020927217,0.8211,2387.8,2387.3,3.4204]
[1728020927218,4.18813,2387.7,2387.3,3.4204]
[1728020927465,8.37643,2387.7,2387.1,4.18918]
[1728020927619,8.37643,2387.7,2387.1,1.62417393]
[1728020927620,4.18836,2387.6,2387.1,1.62417393]
[1728020928541,4.18836,2387.6,2387.1,4.62417393]
[1728020929342,4.18813,2387.7,2387.1,4.62417393]
[1728020929343,4.18813,2387.7,2387.1,3.0]
[1728020929516,0.8211,2387.8,2387.4,4.1885]
[1728020930535,5.00909,2387.8,2387.2,4.18889]
[1728020931225,5.00909,2387.8,2387.2,8.37778]
[1728020931634,5.00909,2387.8,2387.3,4.18878]
[1728020931854,5.00909,2387.8,2387.2,4.18889]
[1728020932051,5.00909,2387.8,2387.2,8.37779]
[1728020932254,5.00909,2387.8,2387.2,4.18889]
[1728020932623,5.92902785,2387.8,2387.1,7.18914]
[1728020933155,4.18822,2387.7,2387.1,7.18914]
[1728020935234,5.92902785,2387.8,2387.3,4.18871]
[1728020935235,1.74103785,2387.8,2387.3,4.18871]
[1728020935447,0.8211,2387.8,2387.4,0.08375927]
[1728020935958,5.00906,2387.8,2387.4,0.08375927]
[1728020936128,5.00906,2387.8,2387.5,0.08375934]
[1728020937060,5.00906,2387.8,2387.4,0.08375933]
[1728020937882,5.00906,2387.8,2387.3,4.18879]
[1728020938959,4.1883,2387.7,2387.1,3.0]
[1728020939264,10.11705585,2387.8,2387.2,4.189]
[1728020939427,4.18814,2387.7,2387.2,4.1889]
[1728020940625,5.92899585,2387.8,2387.2,4.1889]
[1728020941170,5.92899585,2387.8,2387.3,4.26227022]
[1728020941345,5.92899585,2387.8,2387.2,4.1889]
[1728020941670,4.18813,2387.7,2387.2,4.1889]
[1728020941878,4.78102958,2387.7,2387.2,4.1889]
[1728020942033,4.18831,2387.6,2387.1,3.0]
[1728020942366,4.78117958,2387.7,2387.2,4.18899]
[1728020942672,4.78117958,2387.7,2387.0,4.18918]
[1728020942673,0.8263,2387.4,2387.0,4.18918]
[1728020942874,0.8263,2387.4,2386.8,4.70276]
[1728020942875,5.015,2387.4,2386.9,4.18951]
[1728020943028,0.8263,2387.6,2387.2,4.18896]
[1728020943224,4.18912,2387.2,2386.7,6.9297893]
[1728020943430,0.8263,2387.1,2386.7,11.1196393]
[1728020944061,0.8263,2387.1,2386.8,4.1897]
[1728020944278,0.8263,2387.1,2386.9,4.1895]
[1728020944583,0.8263,2387.1,2386.8,4.18959]
[1728020945153,0.8263,2387.1,2386.8,8.3792]
[1728020945351,0.8263,2387.1,2386.8,4.18959]
[1728020946089,5.517024,2387.1,2386.6,4.18995]
[1728020946252,9.20481,2387.1,2386.6,4.18995]
[1728020946583,4.18941,2387.0,2386.5,4.19022]
[1728020947177,9.20485,2387.1,2386.5,4.19022]
[1728020947344,4.18959,2386.9,2386.3,14.5406493]
[1728020947546,4.18952,2387.0,2386.4,4.2118234]
[1728020947869,8.37904,2387.0,2386.4,4.2118234]
[1728020948191,0.7778,2386.8,2386.3,11.1202493]
[1728020948475,0.7778,2386.8,2386.3,15.3106893]
[1728020948680,0.7778,2386.8,2386.3,11.1202293]
[1728020948878,4.96751,2386.8,2386.3,11.1202293]
[1728020949175,5.883217,2386.8,2386.3,11.1202293]
[1728020949376,1.693507,2386.8,2386.4,4.1904]
[1728020949684,0.7778,2386.8,2386.4,4.1904]
[1728020951375,0.7778,2386.8,2386.6,4.19005]
[1728020951591,0.7778,2386.8,2386.5,4.19012]
[1728020952393,0.7778,2386.8,2386.4,8.38068]
[1728020952984,0.7778,2386.8,2386.4,4.19027]
[1728020953158,0.7778,2386.8,2386.5,4.19017]
[1728020954290,0.7778,2386.8,2386.4,4.19027]
[1728020956679,0.7778,2386.8,2386.5,4.19012]
[1728020957598,0.7778,2386.8,2386.6,4.19004]
[1728020957908,0.7778,2386.8,2386.5,0.838039]
[1728020958198,0.7778,2386.8,2386.4,4.19027]
[1728020958869,0.7778,2386.8,2386.4,8.38057]
[1728020959069,0.7778,2386.8,2386.3,4.19056]
[1728020959269,0.7778,2386.6,2386.2,4.19064]
[1728020959496,1.274568,2386.6,2386.0,4.6114]
[1728020959869,4.19032,2386.5,2386.0,4.6114]
[1728020960069,0.7778,2386.4,2385.8,4.19133]
[1728020960274,0.7778,2386.4,2385.9,4.1912]
[1728020960487,0.7778,2386.4,2386.1,4.19093]
[1728020960662,0.7778,2386.4,2386.2,4.19076]
[1728020960860,0.7778,2386.4,2386.3,4.19058]
[1728020961871,0.7778,2386.8,2386.2,4.19075]
[1728020962103,0.7778,2386.8,2386.5,4.19022]
[1728020963782,0.7778,2386.8,2386.6,4.19004]
[1728020965419,0.7778,2386.8,2386.4,4.19024]
[1728020966428,0.7778,2386.8,2386.6,4.19005]
[1728020967122,0.7778,2386.8,2386.7,4.18988]
[1728020968280,0.7778,2387.1,2386.7,4.18988]
[1728020968479,0.7778,2387.1,2386.7,4.27366912]
[1728020969419,0.7778,2387.1,2386.7,4.18988]
[1728020969625,0.7778,2387.1,2386.8,4.18969]
[1728020970722,0.7778,2387.1,2386.9,4.18944]
[1728020971521,0.7778,2387.1,2386.9,4.21984984]
[1728020972280,0.7778,2387.1,2386.9,4.27322198]
[1728020972848,0.7778,2387.4,2387.0,4.18933]
[1728020973210,4.96648,2387.4,2387.0,4.18933]
[1728020973546,4.96648,2387.4,2386.8,9.217212]
[1728020973841,4.96648,2387.4,2386.9,4.18951]
[1728020974256,4.96648,2387.4,2386.9,5.1625232]
[1728020974549,4.96648,2387.4,2387.0,4.18935]
[1728020975551,4.96648,2387.4,2386.9,0.9730132]
[1728020975848,4.96648,2387.4,2386.8,8.37911]
[1728020975849,9.15527,2387.4,2386.8,8.37911]
[1728020976057,4.96648,2387.4,2386.8,8.37911]
[1728020976243,9.15524,2387.4,2386.8,8.37911]
[1728020977448,4.96648,2387.4,2386.9,4.18939]
[1728020978889,9.15522,2387.4,2386.9,4.18939]
[1728020979102,4.96648,2387.4,2386.9,4.18939]
[1728020979700,4.96648,2387.4,2386.9,5.027284]
[1728020981379,4.96648,2387.4,2386.9,4.18939]
[1728020981754,9.15523,2387.4,2386.9,3.72210752]
[1728020982256,4.96648,2387.4,2386.9,3.72210752]
[1728020982567,4.96648,2387.4,2386.8,4.18955]
[1728020982769,0.7652,2387.2,2386.8,4.18955]
[1728020983884,0.7652,2387.2,2386.9,4.18953]
[1728020986735,0.7652,2387.2,2386.8,4.18955]
[1728020986933,0.7652,2387.2,2386.9,4.25613335]
[1728020987442,0.7652,2387.2,2387.1,4.18918]
[1728020987648,0.7652,2387.2,2387.0,4.1892]
[1728020989246,0.7652,2387.2,2387.0,8.37844]
[1728020990106,4.18852,2387.5,2387.0,8.37844]
[1728020990314,5.08548496,2387.5,2387.0,4.1892]
[1728020990535,0.89696496,2387.5,2387.0,4.1892]
[1728020990712,0.89696496,2387.5,2387.1,4.18909]
[1728020992841,0.7566,2387.6,2387.2,4.189]
[1728020993095,0.7566,2387.6,2386.9,4.78637482]
[1728020993246,0.7566,2387.6,2387.2,4.18892]
[1728020994447,0.7566,2387.6,2387.2,4.18891]
[1728020996262,0.7566,2387.5,2387.2,4.18891]
[1728020996595,0.7566,2387.5,2387.1,0.08377482]
[1728020996596,1.669912,2387.5,2387.1,0.08377482]
[1728020996799,0.7566,2387.4,2387.0,4.18924]
[1728020998383,0.7566,2387.4,2387.1,4.18913]
[1728020998569,0.7566,2387.4,2387.0,4.18924]
[1728021000229,0.7566,2387.4,2387.0,8.37851]
[1728021000512,0.7566,2387.4,2387.0,4.18924]
[1728021000681,0.7566,2387.4,2387.0,8.37851]
[1728021001073,0.7566,2387.4,2387.0,4.18924]
[1728021001375,0.7566,2387.4,2387.1,4.18901]
[1728021002366,0.7566,2387.4,2387.0,4.18924]
[1728021002367,0.7566,2387.4,2387.0,8.37849]
[1728021002771,5.858629,2387.4,2386.9,4.18943]
[1728021003004,5.858629,2387.4,2386.8,4.18958]
[1728021003005,0.7566,2387.2,2386.8,8.37919]
[1728021003803,0.7566,2387.2,2386.8,4.18958]
[1728021003975,4.94562,2387.2,2386.7,4.18988]
[1728021004181,1.670046,2387.1,2386.7,4.18988]
[1728021004728,1.670046,2387.1,2386.8,4.18969]